bitfinex-derivatives/quotes_SOLF0:USTF0_20240815
["timestamp","ask_amount","ask_price","bid_price","bid_amount"]
[1723681173284,3.4732,143.93,143.92,0.0483065]
[1723681173879,0.05317554,143.94,143.92,0.0483065]
[1723681174882,3.473,143.93,143.92,0.0483065]
[1723681175078,6.91198401,143.93,143.92,0.0483065]
[1723681177987,3.473,143.93,143.92,0.0483065]
[1723681178688,6.89763435,143.93,143.92,0.0483065]
[1723681178989,3.473,143.93,143.92,0.0483065]
[1723681179186,7.00917554,143.94,143.92,0.0483065]
[1723681179389,3.52617554,143.94,143.92,0.0483065]
[1723681179889,3.52617554,143.94,143.92,9.3983065]
[1723681180485,3.52617554,143.94,143.92,0.0483065]
[1723681182391,0.05317554,143.94,143.92,0.0483065]
[1723681182790,0.05317554,143.94,143.93,12.823]
[1723681183387,4.28,143.98,143.93,9.35]
[1723681183590,4.28,143.98,143.95,9.35]
[1723681183786,4.28,143.98,143.96,3.4723]
[1723681183991,4.28,143.98,143.95,9.35]
[1723681184388,7.752,143.98,143.95,9.35]
[1723681184792,7.80441107,143.98,143.95,9.3991726]
[1723681187102,4.33241107,143.98,143.95,12.8715726]
[1723681187593,4.33241107,143.98,143.96,12.8223]
[1723681187794,4.33241107,143.98,143.96,9.35]
[1723681187998,4.28,144.03,143.97,37.4]
[1723681188302,4.28,144.03,144.01,9.35]
[1723681188502,1.3041,144.04,144.01,9.35]
[1723681188695,1.3041,144.04,144.01,12.8211]
[1723681188895,4.7745,144.04,144.01,9.35]
[1723681189398,4.82752178,144.04,144.01,9.39433173]
[1723681189596,1.35712178,144.04,144.01,9.39433173]
[1723681189798,0.05302178,144.04,144.01,9.39433173]
[1723681189991,0.05302178,144.04,144.03,9.35]
[1723681190901,1.2787,144.1,144.03,9.35]
[1723681191096,1.2787,144.1,144.01,0.04433173]
[1723681191097,4.28,144.09,144.07,9.35]
[1723681191701,4.28,144.09,144.06,9.35]
[1723681192102,4.28,144.09,144.06,12.8199]
[1723681192297,4.33004319,144.09,144.06,12.86811376]
[1723681193506,7.79924319,144.09,144.06,9.39821376]
[1723681193705,4.33004319,144.09,144.06,9.39821376]
[1723681193904,4.33004319,144.09,144.06,12.86801376]
[1723681194508,4.33004319,144.09,144.06,9.39821376]
[1723681195301,4.33004319,144.09,144.07,9.35]
[1723681195508,0.05004319,144.09,144.08,9.35]
[1723681196006,0.05004319,144.09,144.08,12.8194]
[1723681196905,0.05004319,144.09,144.08,9.35]
[1723681200412,0.05004319,144.09,144.08,12.8194]
[1723681202901,1.3001,144.14,144.08,9.35]
[1723681203104,1.3001,144.14,144.13,9.35]
[1723681203310,4.28,144.15,144.13,9.35]
[1723681204121,4.28,144.15,144.11,9.35]
[1723681204303,3.468,144.14,144.13,0.04720862]
[1723681205007,10.424,144.14,144.13,0.04720862]
[1723681209017,6.956,144.12,144.06,9.35]
[1723681209215,6.956,144.1,144.06,9.35]
[1723681209413,7.70449541,144.11,144.06,9.35]
[1723681209609,3.4692,144.09,144.06,9.35]
[1723681210004,6.956,144.1,144.06,9.35]
[1723681210208,4.28,144.11,144.09,9.35]
[1723681210416,4.28,144.11,144.1,9.35]
[1723681210614,0.04540837,144.11,144.1,9.35]
[1723681211111,0.04540837,144.11,144.09,9.35]
[1723681211311,0.04540837,144.11,144.09,9.39964667]
[1723681211507,0.04540837,144.11,144.1,9.35]
[1723681212721,0.04540837,144.11,144.09,0.04964667]
[1723681213013,11.236,144.1,144.09,0.04964667]
[1723681213613,14.7049,144.1,144.09,0.04964667]
[1723681215718,4.28,144.1,144.09,0.04964667]
[1723681216019,4.28,144.1,144.09,9.39964667]
[1723681217626,4.28,144.1,144.09,12.86884667]
[1723681217818,0.04540837,144.11,144.09,12.86884667]
[1723681218020,0.04540837,144.11,144.1,9.35]
[1723681219128,4.28,144.13,144.1,9.35]
[1723681219328,1.2788,144.18,144.12,9.35]
[1723681219527,3.4675,144.16,144.15,9.35]
[1723681220032,3.4675,144.16,144.14,9.35]
[1723681220227,3.4675,144.16,144.13,9.35]
[1723681220433,10.47205456,144.16,144.14,0.04741683]
[1723681221122,3.4677,144.15,144.14,0.04741683]
[1723681221529,10.4237,144.15,144.14,0.04741683]
[1723681221735,3.4677,144.15,144.14,0.04741683]
[1723681222138,3.51615456,144.16,144.14,0.04741683]
[1723681222632,10.47205456,144.16,144.14,0.04741683]
[1723681223648,3.4677,144.15,144.14,0.04741683]
[1723681223937,7.00455456,144.16,144.14,0.04741683]
[1723681224136,10.47215456,144.16,144.14,0.04741683]
[1723681228937,0.04855456,144.16,144.14,9.39741683]
[1723681229137,0.04855456,144.16,144.14,12.86541683]
[1723681231130,0.04855456,144.16,144.15,3.4677]
[1723681231740,6.956,144.2,144.15,3.4677]
[1723681231934,4.28,144.2,144.19,9.35]
[1723681232131,4.28,144.21,144.19,9.35]
[1723681232330,7.7464,144.21,144.19,9.35]
[1723681233242,7.79425179,144.21,144.19,9.40094178]
[1723681233433,4.32785179,144.21,144.2,9.35]
[1723681233939,0.04785179,144.21,144.2,9.35]
[1723681234637,6.956,144.28,144.19,0.05094178]
[1723681234638,4.28,144.27,144.19,0.05094178]
[1723681234941,4.28,144.27,144.24,9.35]
[1723681234942,11.236,144.27,144.24,9.35]
[1723681235138,11.236,144.27,144.16,4.28]
[1723681235333,14.677906,144.27,144.22,9.35]
[1723681235737,0.05255411,144.26,144.23,0.04506371]
[1723681235937,14.677906,144.27,144.2,9.35]
[1723681236238,0.05197434,144.26,144.23,0.04576637]
[1723681238645,0.05197434,144.26,144.23,9.39576637]
[1723681240243,0.05197434,144.26,144.25,9.35]
[1723681240947,0.05197434,144.26,144.24,9.35]
[1723681241735,0.05197434,144.26,144.25,9.35]
[1723681248848,0.05197434,144.26,144.24,3.4655]
[1723681248849,3.50076783,144.26,144.23,0.04576637]
[1723681249043,6.956,144.23,144.18,9.35]
[1723681249245,6.956,144.21,144.17,9.35]
[1723681249646,4.28,144.2,144.12,69.18790133]
[1723681249847,30.2402,144.2,144.12,65.71950133]
[1723681250144,23.33,144.18,144.09,23.33]
[1723681250343,23.33,144.18,144.15,0.05137784]
[1723681250344,0.04900123,144.17,144.15,0.05137784]
[1723681250649,27.61,144.16,144.07,26.7996]
[1723681250847,6.956,144.15,144.07,23.33]
[1723681251050,6.956,144.13,144.07,23.33]
[1723681251249,6.956,144.11,144.07,23.33]
[1723681251746,0.05082693,144.1,144.08,0.04880519]
[1723681252153,0.05082693,144.1,144.09,23.33]
[1723681252949,0.05082693,144.1,144.09,26.7992]
[1723681253453,0.05082693,144.1,144.09,23.33]
[1723681254255,0.05082693,144.1,144.09,26.7992]
[1723681254448,6.956,144.15,144.09,23.33]
[1723681254759,4.28,144.15,144.11,26.7986]
[1723681254958,11.236,144.15,144.11,23.33]
[1723681255451,4.28,144.15,144.11,26.7986]
[1723681255661,0.04785046,144.14,144.12,0.05073711]
[1723681255955,0.04785046,144.14,144.13,23.33]
[1723681256653,0.04785046,144.14,144.13,26.7982]
[1723681257961,0.04785046,144.14,144.13,23.33]
[1723681258355,0.04785046,144.14,144.12,23.38073711]
[1723681259154,0.04785046,144.14,144.12,26.84903711]
[1723681259958,0.04785046,144.14,144.12,23.38073711]
[1723681260354,1.2829,144.19,144.13,23.33]
[1723681260553,4.28,144.17,144.15,23.33]
[1723681260858,6.956,144.2,144.15,23.33]
[1723681261055,11.236,144.2,144.18,23.33]
[1723681261653,11.2798869,144.2,144.18,0.04539892]
[1723681263257,1.2637,144.19,144.12,23.33]
[1723681263957,1.2637,144.19,144.12,26.7983]
[1723681264358,2.5622,144.19,144.12,26.7983]
[1723681264556,0.04766223,144.17,144.14,0.04543546]
[1723681264859,4.28,144.16,144.14,0.04543546]
[1723681265260,4.28,144.16,144.14,23.37543546]
[1723681265662,0.04766223,144.17,144.15,3.4675]
[1723681266363,0.04766223,144.17,144.14,23.37543546]
[1723681266764,0.04766223,144.17,144.15,3.4676]
[1723681267159,0.04766223,144.17,144.14,23.37543546]
[1723681267355,0.04766223,144.17,144.16,26.7975]
[1723681267663,4.28,144.19,144.16,23.33]
[1723681267875,4.28,144.19,144.18,23.33]
[1723681269464,4.28,144.19,144.17,3.51306416]
[1723681269865,4.28,144.19,144.18,3.467]
[1723681270060,4.28,144.19,144.18,26.797]
[1723681270357,0.05081278,144.2,144.18,26.797]
[1723681270760,0.05081278,144.2,144.19,3.4668]
[1723681271059,0.05081278,144.2,144.18,23.33]
[1723681271971,0.05081278,144.2,144.18,26.7968]
[1723681273267,0.05081278,144.2,144.19,3.4668]
[1723681273665,4.28,144.24,144.21,3.4662]
[1723681273871,4.28,144.24,144.21,26.7962]
[1723681274766,4.32936356,144.24,144.21,26.843249]
[1723681275764,4.32936356,144.24,144.22,3.466]
[1723681275965,4.32936356,144.24,144.21,23.377049]
[1723681276871,4.32936356,144.24,144.21,26.843249]
[1723681277067,4.32936356,144.24,144.21,0.047049]
[1723681277972,4.32936356,144.24,144.21,3.513349]
[1723681278674,4.32936356,144.24,144.22,3.4659]
[1723681280173,0.04936356,144.24,144.23,26.7958]
[1723681281474,0.04936356,144.24,144.23,23.33]
[1723681282071,0.04936356,144.24,144.22,3.466]
[1723681282575,0.04936356,144.24,144.21,26.843249]
[1723681282878,0.04936356,144.24,144.21,0.047049]
[1723681283584,4.28,144.23,144.21,0.047049]
[1723681284064,1.2913,144.22,144.13,23.33]
[1723681284269,23.33,144.21,144.13,23.33]
[1723681284464,1.3431,144.2,144.11,24.5624]
[1723681284772,4.28,144.19,144.13,26.7982]
[1723681285371,6.956,144.18,144.12,3.4684]
[1723681285670,0.04865341,144.17,144.15,0.04929715]
[1723681287279,4.36865341,144.17,144.15,0.04929715]
[1723681288874,7.83520957,144.17,144.15,0.04929715]
[1723681289072,4.36865341,144.17,144.15,0.04929715]
[1723681290176,4.36865341,144.17,144.1,3.4689]
[1723681290579,4.36865341,144.17,144.09,26.7991]
[1723681290774,30.286,144.15,143.96,6.9443]
[1723681290978,1.3151,144.14,144.06,23.33]
[1723681291173,0.0532772,144.07,144.06,23.33]
[1723681291382,4.34,144.09,144.06,23.33]
[1723681291580,0.04825779,144.08,144.07,3.4695]
[1723681293079,0.04825779,144.08,144.06,26.7998]
[1723681293282,0.04825779,144.08,144.06,23.33]
[1723681294778,0.04825779,144.08,144.07,3.4697]
[1723681299488,4.34,144.1,144.09,3.469]
[1723681299688,4.34,144.13,144.09,3.469]
[1723681299885,3.4686,144.12,144.09,3.469]
[1723681300482,3.52141433,144.12,144.09,3.51865953]
[1723681301384,0.05281433,144.12,144.09,3.51865953]
[1723681303085,3.52141433,144.12,144.09,0.04965953]
[1723681303291,0.05281433,144.12,144.09,0.04965953]
[1723681304485,3.52141433,144.12,144.09,0.04965953]
[1723681304985,0.05281433,144.12,144.09,0.04965953]
[1723681306487,3.52141433,144.12,144.09,0.04965953]
[1723681310587,7.00881433,144.12,144.09,0.04965953]
[1723681311190,10.4249,144.1,144.09,0.04965953]
[1723681311690,10.41647247,144.1,144.03,23.33]
[1723681311897,6.956,144.08,144.03,23.33]
[1723681312288,8.2317,144.08,144.03,23.33]
[1723681312494,6.956,144.06,144.03,23.33]
[1723681312798,4.34,144.05,144.01,23.33]
[1723681312998,4.34,144.05,144.03,0.05129516]
[1723681313593,3.4704,144.04,144.03,0.05129516]
[1723681313798,4.34,144.05,144.03,0.05129516]
[1723681313994,11.296,144.05,144.03,0.05129516]
[1723681314396,4.34,144.04,144.03,0.05129516]
[1723681322506,0.04996632,144.06,144.03,23.38129516]
[1723681322697,7.7887,144.11,144.07,3.4695]
[1723681322898,7.7887,144.11,144.07,26.7995]
[1723681323097,4.32,144.11,144.07,23.33]
[1723681323905,3.51899745,144.1,144.08,0.05298005]
[1723681324606,3.4692,144.09,144.08,0.05298005]
[1723681325912,0.04989745,144.1,144.08,0.05298005]
[1723681326213,0.04989745,144.1,144.08,23.38298005]
[1723681326906,3.4692,144.09,144.08,0.05298005]
[1723681328420,10.4252,144.09,144.08,0.05298005]
[1723681328919,6.956,144.06,144.0,23.33]
[1723681329218,11.276,144.05,143.98,23.33]
[1723681329410,7.7906,144.04,144.0,3.4712]
[1723681329611,4.32,144.04,143.98,23.33]
[1723681329808,4.32,144.04,143.99,3.4714]
[1723681330018,0.05327555,144.02,144.0,0.04711365]
[1723681330418,0.05327555,144.02,144.0,3.51831365]
[1723681330615,0.05327555,144.02,144.0,23.37711365]
[1723681331220,0.05327555,144.02,144.0,26.84831365]
[1723681331421,0.05327555,144.02,144.0,23.37711365]
[1723681331814,0.05327555,144.02,144.0,26.84841365]
[1723681332117,0.05327555,144.02,144.0,23.37711365]
[1723681333220,0.05327555,144.02,144.0,0.04711365]
[1723681333915,3.52427555,144.02,144.0,0.04711365]
[1723681334313,0.05327555,144.02,144.0,0.04711365]
[1723681335113,3.52417555,144.02,144.0,0.04711365]
[1723681335420,0.05327555,144.02,144.0,0.04711365]
[1723681336121,3.52427555,144.02,144.0,0.04711365]
[1723681336512,0.05327555,144.02,144.0,0.04711365]
[1723681336718,10.4271,144.01,144.0,0.04711365]
[1723681336914,6.956,144.01,143.93,23.33]
[1723681337117,4.34,144.0,143.93,23.33]
[1723681337325,3.4719,143.98,143.94,3.4727]
[1723681337628,4.34,144.0,143.92,60.07422909]
[1723681337823,3.4721,143.97,143.92,60.07422909]
[1723681338020,4.34,143.96,143.93,23.33]
[1723681338224,4.39234503,143.96,143.95,23.33]
[1723681338420,0.05234503,143.96,143.95,23.33]
[1723681338615,0.05234503,143.96,143.95,26.8026]
[1723681339020,2.4862,144.03,143.95,23.33]
[1723681339224,4.34,144.02,143.99,23.33]
[1723681339422,4.34,144.02,143.98,23.33]
[1723681339827,7.8109,144.02,143.98,26.8018]
[1723681340124,4.34,144.02,143.99,0.04471013]
[1723681340317,0.04471999,144.01,143.99,0.04471013]
[1723681340919,3.51581999,144.01,143.99,0.04471013]
[1723681341124,0.04471999,144.01,143.99,0.04471013]
[1723681343029,3.51581999,144.01,143.99,0.04471013]
[1723681344623,3.4713,144.0,143.99,0.04471013]
[1723681344825,0.04471999,144.01,143.91,23.33]
[1723681344826,23.37471999,144.01,143.91,23.33]
[1723681345032,30.286,143.99,143.89,23.33]
[1723681345235,3.4729,143.94,143.9,3.4736]
[1723681345527,4.34,143.93,143.9,3.4736]
[1723681346130,4.34,143.93,143.89,3.4739]
[1723681346433,4.34,143.93,143.88,23.33]
[1723681346434,4.38491643,143.93,143.9,0.04884399]
[1723681346627,3.4734,143.92,143.9,0.04884399]
[1723681347325,4.38491643,143.93,143.9,0.04884399]
[1723681347326,0.04491643,143.93,143.9,23.37884399]
[1723681347532,0.04491643,143.93,143.92,23.33]
[1723681347739,0.04491643,143.93,143.92,26.8033]
[1723681347924,0.04491643,143.93,143.9,23.37884399]
[1723681348525,0.04491643,143.93,143.9,0.04884399]
[1723681349032,3.4734,143.92,143.9,0.04884399]
[1723681349233,4.38,143.91,143.9,0.04884399]
[1723681349734,7.8535,143.91,143.9,0.04884399]
[1723681350121,4.38,143.91,143.9,0.04884399]
[1723681351032,0.04491643,143.93,143.9,23.37884399]
[1723681351326,0.04491643,143.93,143.92,26.8033]
[1723681351929,0.04491643,143.93,143.92,32.6633]
[1723681358733,0.04491643,143.93,143.91,3.4734]
[1723681358925,0.04491643,143.93,143.9,0.04884399]
[1723681359333,3.51811643,143.93,143.9,0.04884399]
[1723681359638,0.04491643,143.93,143.9,0.04884399]
[1723681359938,4.42491643,143.93,143.9,3.52254399]
[1723681360526,7.89801643,143.93,143.9,3.52254399]
[1723681361930,4.42491643,143.93,143.91,3.4735]
[1723681362132,4.42491643,143.93,143.9,0.04884399]
[1723681362440,7.89811643,143.93,143.9,3.52244399]
[1723681362639,4.42491643,143.93,143.9,0.04884399]
[1723681363041,7.89811643,143.93,143.9,3.52254399]
[1723681364535,4.42491643,143.93,143.9,0.04884399]
[1723681365041,3.4733,143.92,143.9,0.04884399]
[1723681366340,7.89801643,143.93,143.9,0.04884399]
[1723681367740,7.89801643,143.93,143.9,3.52254399]
[1723681368648,7.89801643,143.93,143.9,0.04884399]
[1723681370652,7.89801643,143.93,143.9,3.52254399]
[1723681371946,7.89801643,143.93,143.9,23.40884399]
[1723681371947,0.04491643,143.93,143.9,23.40884399]
[1723681372143,0.04491643,143.93,143.92,23.36]
[1723681372343,5.7383,143.99,143.92,46.72]
[1723681372548,5.7383,143.99,143.96,26.8321]
[1723681372745,5.7383,143.99,143.93,23.36]
[1723681372951,5.7383,143.99,143.92,3.4732]
[1723681373149,6.956,143.98,143.91,24.6911]
[1723681373551,0.04737989,143.96,143.93,0.04542337]
[1723681373950,3.51977989,143.96,143.93,0.04542337]
[1723681374642,3.4726,143.95,143.93,0.04542337]
[1723681375147,0.04737989,143.96,143.93,0.04542337]
[1723681375446,3.51977989,143.96,143.93,3.51842337]
[1723681375656,0.04737989,143.96,143.93,0.04542337]
[1723681375949,3.51977989,143.96,143.93,0.04542337]
[1723681376742,3.51977989,143.96,143.93,3.51842337]
[1723681376942,0.04737989,143.96,143.93,0.04542337]
[1723681377144,0.04737989,143.96,143.94,3.4728]
[1723681377541,0.04737989,143.96,143.93,0.04542337]
[1723681377749,0.04737989,143.96,143.94,3.4728]
[1723681379846,0.04737989,143.96,143.95,3.4725]
[1723681380053,0.04737989,143.96,143.95,26.8325]
[1723681380441,4.4,144.0,143.99,3.4716]
[1723681382362,0.05277814,144.01,144.0,3.4713]
[1723681384256,64.09256081,144.22,143.99,23.36]
[1723681384257,1.3143,144.09,144.05,3.4701]
[1723681384456,1.3143,144.09,144.05,23.36]
[1723681384457,5.7143,144.09,144.05,23.36]
[1723681384757,5.7143,144.09,144.03,23.36]
[1723681385162,3.4695,144.08,144.03,23.36]
[1723681385556,0.0514003,144.07,144.05,0.04381248]
[1723681385763,0.0514003,144.07,144.05,23.40381248]
[1723681386563,0.0514003,144.07,144.06,3.4699]
[1723681388561,0.0514003,144.07,144.05,26.87371248]
[1723681388958,0.0514003,144.07,144.05,23.40381248]
[1723681389165,0.0514003,144.07,144.06,3.4699]
[1723681391459,0.0514003,144.07,144.05,3.51381248]
[1723681392163,0.0514003,144.07,144.05,0.04381248]
[1723681394371,0.0514003,144.07,144.05,3.51391248]
[1723681394869,0.0514003,144.07,144.06,3.4699]
[1723681396061,0.0514003,144.07,144.06,26.8299]
[1723681396467,4.4,144.13,144.09,3.4692]
[1723681396761,7.8684,144.13,144.09,3.4692]
[1723681397464,4.4,144.13,144.05,23.36]
[1723681397769,7.00379182,144.12,144.1,0.04601176]
[1723681398164,0.04779182,144.12,144.1,0.04601176]
[1723681399670,0.04779182,144.12,144.1,3.51481176]
[1723681401570,0.04779182,144.12,144.1,0.04601176]
[1723681402977,3.4687,144.11,144.1,0.04601176]
[1723681403476,0.04779182,144.12,144.1,0.04601176]
[1723681405167,0.04779182,144.12,144.1,3.51491176]
[1723681405575,0.04779182,144.12,144.1,0.04601176]
[1723681405771,0.04779182,144.12,144.11,3.4687]
[1723681407477,4.4,144.15,144.13,3.4681]
[1723681407667,4.4,144.15,144.13,23.36]
[1723681407868,4.7147,144.17,144.13,23.36]
[1723681408071,4.7147,144.17,144.13,26.8281]
[1723681408272,4.7147,144.17,144.13,23.36]
[1723681408979,0.0465441,144.16,144.14,0.04778955]
[1723681409677,0.0465441,144.16,144.14,3.51568955]
[1723681410275,3.5140441,144.16,144.14,0.04778955]
[1723681410581,0.0465441,144.16,144.14,0.04778955]
[1723681410780,0.0465441,144.16,144.14,3.51568955]
[1723681414076,0.0465441,144.16,144.15,26.8277]
[1723681417482,0.0465441,144.16,144.15,3.4677]
[1723681417678,0.0465441,144.16,144.14,0.04778955]
[1723681418082,0.0465441,144.16,144.14,3.51558955]
[1723681418585,0.0465441,144.16,144.14,0.04778955]
[1723681419788,3.5141441,144.16,144.14,3.51568955]
[1723681420188,3.5141441,144.16,144.14,0.04778955]
[1723681420490,3.4677,144.15,144.14,0.04778955]
[1723681420690,4.4865441,144.16,144.14,0.04778955]
[1723681420891,4.4865441,144.16,144.14,3.51558955]
[1723681421286,4.4865441,144.16,144.15,3.4677]
[1723681421692,4.4865441,144.16,144.14,23.40778955]
[1723681423597,4.4865441,144.16,144.14,0.04778955]
[1723681423997,3.4677,144.15,144.14,0.04778955]
[1723681430202,4.4865441,144.16,144.14,0.04778955]
[1723681431804,4.4865441,144.16,144.15,3.4677]
[1723681432407,4.4865441,144.16,144.14,3.51568955]
[1723681434107,4.4865441,144.16,144.15,26.8277]
[1723681434108,0.0465441,144.16,144.15,26.8277]
[1723681434309,5.6783,144.2,144.15,23.36]
[1723681434512,9.1448,144.2,144.17,23.36]
[1723681434708,9.1448,144.2,144.17,26.8271]
[1723681435509,9.19428734,144.2,144.17,26.87620695]
[1723681437625,3.4668,144.19,144.17,0.04910695]
[1723681437810,5.72778734,144.2,144.17,0.04910695]
[1723681438313,3.467,144.18,144.17,0.04910695]
[1723681439117,3.4669,144.19,144.17,0.04910695]
[1723681439622,9.19438734,144.2,144.17,0.04910695]
[1723681441236,3.4668,144.19,144.17,0.04910695]
[1723681441722,5.72778734,144.2,144.17,0.04910695]
[1723681442324,9.19448734,144.2,144.17,0.04910695]
[1723681443925,5.72778734,144.2,144.17,0.04910695]
[1723681444925,3.4669,144.19,144.17,0.04910695]
[1723681445824,3.4669,144.19,144.17,9.36910695]
[1723681446435,16.15038734,144.2,144.17,9.36910695]
[1723681446827,5.72778734,144.2,144.18,9.32]
[1723681447226,12.66878734,144.2,144.18,9.32]
[1723681447731,16.13548734,144.2,144.18,9.32]
[1723681449832,7.95618734,144.2,144.18,9.32]
[1723681450031,0.04948734,144.2,144.18,9.32]
[1723681450836,0.04948734,144.2,144.19,3.4668]
[1723681453034,5.7095,144.23,144.21,3.4662]
[1723681453331,5.7095,144.23,144.2,9.32]
[1723681454122,5.73592474,144.23,144.2,9.36984562]
[1723681455626,5.73592474,144.23,144.21,9.32]
[1723681456329,9.20192474,144.23,144.21,9.32]
[1723681458036,5.73592474,144.23,144.22,9.32]
[1723681460738,5.73592474,144.23,144.21,9.32]
[1723681463835,6.941,144.22,144.2,0.04984562]
[1723681464043,17.605,144.22,144.17,9.32]
[1723681464338,10.4079,144.19,144.17,9.32]
[1723681464543,4.4,144.19,144.18,9.32]
[1723681465337,1.344,144.22,144.18,9.32]
[1723681465541,4.4,144.21,144.2,9.32]
[1723681466839,0.04516683,144.22,144.2,12.7865]
[1723681467040,0.04516683,144.22,144.2,9.32]
[1723681467238,6.941,144.24,144.2,46.6]
[1723681467443,6.941,144.24,144.22,9.32]
[1723681467940,4.34,144.26,144.22,9.32]
[1723681468242,4.34,144.26,144.24,9.32]
[1723681468448,0.03110353,144.25,144.24,9.32]
[1723681470237,3.49640353,144.25,144.23,0.04617241]
[1723681470546,10.43740353,144.25,144.23,9.36617241]
[1723681470840,3.4656,144.24,144.23,0.04617241]
[1723681471746,10.4066,144.24,144.23,0.04617241]
[1723681474146,3.4656,144.24,144.23,0.04617241]
[1723681474346,4.7991,144.24,144.23,0.04617241]
[1723681474855,11.7401,144.24,144.23,0.04617241]
[1723681476853,11.31210353,144.25,144.23,9.36617241]
[1723681477551,4.37110353,144.25,144.23,9.36617241]
[1723681477851,11.31210353,144.25,144.23,9.36617241]
[1723681478840,14.77740353,144.25,144.23,9.36617241]
[1723681480848,14.77740353,144.25,144.23,0.04617241]
[1723681481446,10.4066,144.24,144.23,0.04617241]
[1723681481850,3.4656,144.24,144.23,0.04617241]
[1723681482254,3.4663,144.21,144.19,9.32]
[1723681482554,1.3221,144.23,144.17,12.7871]
[1723681482747,10.4074,144.21,144.17,12.7871]
[1723681483356,0.04393453,144.2,144.18,0.04960175]
[1723681485156,0.04393453,144.2,144.19,9.32]
[1723681491467,0.04393453,144.2,144.19,12.7868]
[1723681491665,0.04393453,144.2,144.19,9.32]
[1723681494072,0.04393453,144.2,144.19,12.7868]
[1723681496557,11.281,144.24,144.19,46.6]
[1723681496758,11.281,144.24,144.22,9.32]
[1723681497867,11.31434141,144.24,144.22,9.36530613]
[1723681498762,14.77994141,144.24,144.22,9.36530613]
[1723681499568,11.31434141,144.24,144.22,9.36530613]
[1723681500667,14.77994141,144.24,144.22,9.36530613]
[1723681502370,14.77994141,144.24,144.22,0.04530613]
[1723681502371,3.4658,144.23,144.22,0.04530613]
[1723681504969,14.78004141,144.24,144.22,0.04530613]
[1723681505171,14.78004141,144.24,144.23,9.32]
[1723681505766,14.78004141,144.24,144.22,9.36530613]
[1723681507372,3.4658,144.23,144.22,0.04530613]
[1723681508372,14.78004141,144.24,144.22,9.36530613]
[1723681510879,0.03334141,144.24,144.23,9.32]
[1723681511086,0.03334141,144.24,144.22,0.04530613]
[1723681511284,3.4658,144.23,144.22,0.04530613]
[1723681511486,10.4068,144.23,144.22,0.04530613]
[1723681513776,6.941,144.23,144.22,0.04530613]
[1723681513978,0.03334141,144.24,144.22,9.36530613]
[1723681514185,0.03334141,144.24,144.22,12.83110613]
[1723681515383,0.03334141,144.24,144.22,9.36530613]
[1723681515683,0.03334141,144.24,144.22,0.04530613]
[1723681515882,3.49904141,144.24,144.22,0.04530613]
[1723681516082,0.03334141,144.24,144.22,9.36530613]
[1723681516380,0.03334141,144.24,144.23,9.32]
[1723681518877,10.44014141,144.24,144.22,9.36530613]
[1723681519088,0.03334141,144.24,144.22,9.36530613]
[1723681519386,0.03334141,144.24,144.22,12.83130613]
[1723681519586,0.03334141,144.24,144.23,9.32]
[1723681520283,0.03334141,144.24,144.23,12.7858]
[1723681526495,0.03334141,144.24,144.22,0.04530613]
[1723681526697,6.97434141,144.24,144.22,0.04530613]
[1723681526897,11.221,144.23,144.22,0.04530613]
[1723681527189,12.5318,144.23,144.18,9.32]
[1723681527698,10.4074,144.21,144.18,9.32]
[1723681528494,10.45240446,144.21,144.18,9.36665843]
[1723681529090,6.98600446,144.21,144.19,9.32]
[1723681529291,6.98600446,144.21,144.2,9.32]
[1723681529689,6.98600446,144.21,144.19,9.32]
[1723681531195,0.04500446,144.21,144.19,9.32]
[1723681531709,0.04500446,144.21,144.18,9.36665843]
[1723681532197,10.4077,144.2,144.18,9.36665843]
[1723681532588,3.4668,144.19,144.18,0.04665843]
[1723681532799,7.7468,144.19,144.18,0.04665843]
[1723681533495,0.04500446,144.21,144.18,9.36665843]
[1723681533701,11.26600446,144.21,144.18,9.36665843]
[1723681534700,14.73230446,144.21,144.18,9.36665843]